Cogmind - Beta 16.1 @@@ ROGUE MODE // 2026.02.23 @ 04:11:25 Player: Sen Result: Destroyed by D-53 Grenadier with Mini Grenade Launcher Performance ------------- Evolutions (0) 0 Regions Visited (2) 400 Robots Destroyed (2) 10 Value Destroyed (107) 107 Prototype IDs (0) 0 Alien Tech Used (0) 0 Bonus (0) 0 TOTAL SCORE: 517 Bonus ------- None Cogmind --------- Core Integrity 0/250 Matter 74/300 Energy 100/100 System Corruption 0% Temperature Cool (0) Movement Core (50) Location -10/Mines Parts ------- > --- POWER (1) -------- (None) > --- PROPULSION (2) --- (None) > --- UTILITY (2) ------ Signal Interpreter > --- WEAPON (2) ------- Grenade Launcher > --- INVENTORY (5) ---- Wheel Peak State ------------ > --- POWER ------------ Ion Engine > --- PROPULSION ------- Aluminum Leg Aluminum Leg > --- UTILITY ---------- Signal Interpreter Targeting Computer > --- WEAPON ----------- EM Pulse Gun Assault Rifle > --- INVENTORY -------- Light Ion Engine Grenade Launcher [Rating: 7] Favorites ----------- Power Ion Engine Engine Ion Engine Propulsion Aluminum Leg Leg Aluminum Leg Utility Signal Interpreter Device Seismic Detector Processor Signal Interpreter Weapon Assault Rifle Energy Gun EM Pulse Gun Ballistic Gun Assault Rifle Launcher Grenade Launcher Build | -11 -10 -10 ------- Run | Yrd Mat Min Slots Evolved . | . . . Power . | . . . Propulsion . | . . . Utility . | . . . Weapon . | . . . Parts Attached 11 | 5 3 3 Power 2 | 1 . 1 Engine 2 | 1 . 1 Core . | . . . Reactor . | . . . Propulsion 2 | 2 . . Treads . | . . . Leg 2 | 2 . . Wheel . | . . . Hover . | . . . Flight . | . . . Utility 3 | . 2 1 Device 1 | . . 1 Storage . | . . . Processor 2 | . 2 . Hackware . | . . . Protection . | . . . Artifact . | . . . Weapon 4 | 2 1 1 Energy Gun 1 | 1 . . Energy Cannon . | . . . Ballistic Gun 2 | 1 1 . Ballistic Cannon . | . . . Launcher 1 | . . 1 Special Weapon . | . . . Impact Weapon . | . . . Slashing Weapon . | . . . Piercing Weapon . | . . . Special Melee Weapon . | . . . Unidentified Prototypes . | . . . Parts Lost 8 | . . 8 Power 2 | . . 2 Propulsion 2 | . . 2 Utility 1 | . . 1 Weapon 3 | . . 3 Highest Loss Streak 7 | . . 7 To Critical Strikes . | . . . Average Backups 2 | . 2 2 Power . | . 1 . Propulsion . | . . . Utility . | . . . Weapon 1 | . 1 1 Tool/Special . | . . . Unused Backups 1 | . . 1 Power . | . . . Propulsion 1 | . . 1 Utility . | . . . Weapon . | . . . Tool/Special . | . . . Average Slot Usage (%) 79 | . 87 69 Engine 13 | . 14 12 Leg 22 | . 28 16 Device 3 | . . 7 Processor 15 | . 16 14 Energy Gun 10 | . 14 6 Ballistic Gun 12 | . 14 10 Peak Build Rating 7 | 5 7 7 Average Rating 5 | 3 6 4 On Entrance 4 | . 5 7 Avg Prop Armor Cover (%) . | . . . Naked Turns . | . . . Heaviest Build 10 | 9 9 10 Greatest Support 20 | 20 20 20 Greatest Overweight (x) . | . . . Average Overweight (x) . | . . . Largest Inventory Capacity 5 | 5 5 5 Average Capacity 5 | 5 5 5 Most Carried 4 | 1 4 4 Average Carried 2 | . 2 2 Final Capacity 5 | 5 5 5 Final Carried 4 | 1 4 1 Class Distribution -------------------- 100% | Mutant Dominant Class ---------------- Mutant | -10/Materials Mutant | -10/Mines Resources | -11 -10 -10 ----------- Run | Yrd Mat Min Matter Collected 149 | 72 77 . Remotely . | . . . Salvage Created 43 | . 31 12 Parts 1 | . . 1 Haulers Intercepted . | . . . Recyclers Shooed . | . . . Parts Field Recycled . | . . . Retrieved Matter . | . . . Parts Self-Destructed . | . . . Prevented . | . . . Parts Restored . | . . . Kills | -11 -10 -10 ------- Run | Yrd Mat Min Combat Hostiles Destroyed 2 | . 1 1 Guns 1 | . 1 . AOE 1 | . . 1 Classes Destroyed 2 | . 1 1 Grunt 1 | . 1 . Demolisher 1 | . . 1 Best Kill Streak 1 | . 1 1 Combat Bots Only 1 | . 1 1 Max Kills in Single Turn 1 | . 1 1 Gunslinging . | . . . Exploded 1 | . . 1 Melee . | . . . Uniques/NPCs Destroyed . | . . . Combat | -11 -10 -10 -------- Run | Yrd Mat Min Hostile Shots Fired 33 | . 16 17 Missed 7 | . 5 2 Hits 26 | . 11 15 Projectile 26 | . 11 15 AOE 16 | . . 16 Critical Strikes 1 | . 1 . Damage Taken 822 | . 153 669 Core 252 | . 28 224 Absorbed by Shields . | . . . Core Remaining (%) 100 | 100 . . Volleys Fired 17 | . 7 10 Largest 2 | . 2 2 Hottest 60 | . 60 40 Shots Fired 27 | . 14 13 Gun 22 | . 14 8 Cannon . | . . . Launcher 5 | . . 5 Special . | . . . Kinetic 15 | . 7 8 Thermal . | . . . Explosive 5 | . . 5 Electromagnetic 7 | . 7 . Robot Hit Streak 5 | . 4 5 Robot Miss Streak 2 | . 2 2 Penetration Max . | . . . Secondary Targets . | . . . Shots Hit Robots 19 | . 10 9 Core Hits 10 | . 4 6 Critical Kills . | . . . Critical Parts Destroyed . | . . . Critical Strikes . | . . . Melee Attacks . | . . . Impact . | . . . Slashing . | . . . Piercing . | . . . Sneak Attacks . | . . . Combat Hostiles . | . . . Follow-up Attacks . | . . . Damage Inflicted 259 | . 159 100 Guns 195 | . 135 60 Cannons . | . . . Explosions 64 | . 24 40 Melee . | . . . Ramming . | . . . Kinetic 126 | . 66 60 Thermal 24 | . 24 . Explosive 40 | . . 40 Electromagnetic 69 | . 69 . Impact . | . . . Slashing . | . . . Piercing . | . . . Highest Corruption . | . . . Average Corruption . | . . . Corruption Purged . | . . . Corruption Blocked . | . . . Overload Shots . | . . . Overflow Damage . | . . . Projectiles . | . . . Explosions . | . . . Melee . | . . . Knockbacks . | . . . Impact . | . . . Kinetic . | . . . Secondary . | . . . Self-Inflicted Damage 59 | . 20 39 Shots 4 | . 1 3 Rammed . | . . . Targets Rammed . | . . . Kicked . | . . . Crushed . | . . . Highest Temperature 63 | . 63 . Average Temperature 31 | . 31 . Received Heat Transfer 96 | . 96 . Siege Activations . | . . . Martial Activations . | . . . Shielding Activations . | . . . Robots Disrupted . | . . . Combat Hostiles . | . . . Robots Corrupted . | . . . Combat Hostiles . | . . . Parts Fried . | . . . Impact Corruptions . | . . . Robots Melted . | . . . Combat Hostiles . | . . . Parts Melted . | . . . Heat Transferred 50 | . 50 . Parts Sabotaged . | . . . Parts Stolen . | . . . Parts Stripped . | . . . Power Chain Reactions 1 | . 1 . Alert | -11 -10 -10 ------- Run | Yrd Mat Min Maximum Alert Level . | . . . Low Security (%) 100 | 100 100 100 Level 1 . | . . . Level 2 . | . . . Level 3 . | . . . Level 4 . | . . . Level 5 . | . . . High Security . | . . . Max Security . | . . . Peak Influence 43 | . 43 41 Initial 8 | . . 8 Average 8 | . 13 4 Influence Increases 113 | . 53 60 Destroy 0b10 Robot/C 40 | . 20 20 Destroy Leader 10 | . . 10 Allied During Kill 2 | . . 2 Disable Machine 30 | . 30 . Destroy Structure 16 | . 3 13 Lose Combat Pursuer 15 | . . 15 Influence Decreases 108 | . 30 78 Entered New Map 15 | . . 15 Time Decay 48 | . 30 18 Lost Part 25 | . . 25 Lost Ally 20 | . . 20 Squads Dispatched . | . . . Investigation . | . . . Extermination . | . . . Reinforcement . | . . . Assault . | . . . Garrison . | . . . Intercept . | . . . Searches Triggered . | . . . Construction Impeded . | . . . Haulers Reinforced . | . . . Active Scanning Responses . | . . . Cargo Convoy Interrupts . | . . . Stealth | -11 -10 -10 --------- Run | Yrd Mat Min Distress Signals . | . . . Communications Jammed . | . . . Distress Signals . | . . . Times Spotted 5 | . 2 3 Peak Tracking Total 2 | . 2 2 Tactical Retreats 1 | . . 1 Traps | -11 -10 -10 ------- Run | Yrd Mat Min Traps Triggered . | . . . Indirectly . | . . . Trap Hack Attempts . | . . . Triggered . | . . . Disarmed . | . . . Reprogrammed . | . . . Reused . | . . . Traps Extracted . | . . . Installed . | . . . Triggered . | . . . Machines | -11 -10 -10 ---------- Run | Yrd Mat Min Machines Disabled 2 | . 2 . Max in Single Turn 1 | . 1 . Machines Repaired . | . . . Machines Dismantled . | . . . Machines Sabotaged . | . . . Overloaded Fab Kills . | . . . Hacking | -11 -10 -10 --------- Run | Yrd Mat Min Machines Accessed . | . . . Terminals . | . . . Fabricators . | . . . Repair Stations . | . . . Recycling Units . | . . . Scanalyzers . | . . . Garrison Access . | . . . Total Hacks . | . . . Successful . | . . . Failed . | . . . Catastrophic . | . . . Database Lockouts . | . . . Manual . | . . . Terminals . | . . . Fabricators . | . . . Repair Stations . | . . . Recycling Units . | . . . Scanalyzers . | . . . Garrison Access . | . . . Terminal Hacks . | . . . Fabricator Hacks . | . . . Repair Station Hacks . | . . . Recycling Unit Hacks . | . . . Scanalyzer . | . . . Garrison Access Hacks . | . . . Unauthorized Hacks . | . . . Terminals . | . . . Fabricators . | . . . Repair Stations . | . . . Recycling Units . | . . . Scanalyzers . | . . . Garrison Access . | . . . Data Cores Recovered . | . . . Used . | . . . Hacking Detections . | . . . Full Trace Events . | . . . Feedback Events . | . . . Feedback Blocked . | . . . Robot Schematics Acquired . | . . . Robots Built . | . . . Authchips . | . . . Time . | . . . Total Robot Build Rating . | . . . Part Schematics Acquired . | . . . Parts Built . | . . . Authchips . | . . . Time . | . . . Total Part Build Rating . | . . . Part Studies Acquired . | . . . Parts Repaired . | . . . Time . | . . . Parts Recycled . | . . . Recycled Matter . | . . . Retrieved Matter . | . . . Retrieved Components . | . . . Parts Scanalyzed . | . . . Part Schematics Acquired . | . . . Parts Damaged . | . . . Bothacking | -11 -10 -10 ------------ Run | Yrd Mat Min Used RIF Installer . | . . . Robots Hacked . | . . . Non-combat . | . . . Combat . | . . . Robot Hacks Applied . | . . . Relay Couplers Released . | . . . Fabnet Peak Effective % . | . . . Robots Rewired . | . . . Allies Hacked . | . . . Hacks Repelled . | . . . Allies | -11 -10 -10 -------- Run | Yrd Mat Min Total Allies 3 | . . 3 Largest Group 3 | . . 3 Highest-Rated Group 40 | . . 40 Highest-Rated Ally 16 | . . 16 Total Orders . | . . . Ally Attacks 10 | . . 10 Total Damage 81 | . . 81 Kills . | . . . Allies Corrupted . | . . . Allies Melted . | . . . Intel | -11 -10 -10 ------- Run | Yrd Mat Min Active Infowar (turns) 58 | . . 58 Seismic 58 | . . 58 Robot Analysis Total . | . . . Derelict Logs Recovered . | . . . Drone Launches . | . . . Drone Recoveries . | . . . Exploration | -11 -10 -10 ------------- Run | Yrd Mat Min Turns Passed 275 | 49 125 101 Spaces Moved 199 | 37 81 81 Core 47 | 5 . 42 Treads . | . . . Legs 152 | 32 81 39 Wheels . | . . . Hover . | . . . Flight . | . . . Fastest Speed 50 | 50 120 50 Average Speed 103 | 110 120 83 Slowest Speed 120 | 120 120 120 Overloaded Moves . | . . . Propulsion Burnouts . | . . . Robots Hopped . | . . . Potential Cave-ins . | . . . Cave-ins Triggered . | . . . Exploration Rate (%) 14 | 3 17 23 Regions Visited 2 Branch Regions 1 Pre-discovered Areas . | . . . Known Exits Taken 1 | . 1 . Unknown Exits Taken 1 | 1 . . Scrap Searched . | . . . Spaces Dug . | . . . Terrain Destroyed 21 | . 2 19 Melee . | . . . Projectile . | . . . AOE 21 | . 2 19 Terrain Rammed . | . . . Walls Destroyed . | . . . Machines Disabled . | . . . Actions | -11 -10 -10 --------- Run | Yrd Mat Min Total 236 | 42 93 101 Wait 5 | . 1 4 Move 197 | 36 80 81 Hop . | . . . Pick Up 4 | 1 2 1 Fast Attach 7 | 5 2 . Attach 4 | . . 4 Detach 1 | . . 1 Swap 1 | . 1 . Drop . | . . . Fire 17 | . 7 10 Melee . | . . . Ram . | . . . Kick . | . . . Crush . | . . . Escape Stasis . | . . . Rewire . | . . . Trap . | . . . Miscellaneous . | . . . Route ------- -11/Scrapyard -10/Materials -10/Mines History --------- Turn | Location | Event 33 | -11/Scrapyard | Discovered new exit (range 15) 50 | -11/Scrapyard | Entered Materials 167 | -10/Materials | Discovered new exit (range 8) 174 | -10/Materials | Identified exit to Mines 175 | -10/Materials | Entered Mines 176 | -10/Mines | Assembled infested the area 181 | -10/Mines | Assisted by a Guerilla fighting off Assembled 244 | -10/Mines | Core integrity fell below 50% 254 | -10/Mines | Assisted by bots powering up and referring to "LRC-V3" 269 | -10/Mines | Lost 7 parts (1p2n1u3w) 275 | -10/Mines | Core integrity fell below 20% 276 | -10/Mines | Destroyed by D-53 Grenadier with Mini Grenade Launcher Last Messages --------------- 00232_ Aluminum Leg destroyed. 00234_ Seismic Detector destroyed. 00234_ Assault Rifle destroyed. 00238_ The unstable cave ceiling collapses. 00238_ Assault Rifle destroyed. 00238_ Ion Engine destroyed. 00242_ The unstable cave ceiling collapses. 00242_ Acquired Wheel. 00254_ Trooper 1a: "Hello LRC-V3. What is your command?" 00254_ Mercenary 1a: "Hello LRC-V3. What is your command?" 00254_ Trooper 1b: "Hello LRC-V3. What is your command?" 00266_ Mercenary 1a destroyed. 00266_ Trooper 1a destroyed. 00266_ D-53 Grenadier destroyed. 00270_ Trooper 1b destroyed. 00272_ Lgt. Ion Engine destroyed. 00274_ The unstable cave ceiling collapses. Map ----- +----------------------------------------------------+ | | | | | | | | | | | | | | | | | | | | | | | | | | | | | ?????????????????????????????????????????????????? | | ?????????????????????????????????????????????????? | | ?????????????????????????????????????????????????? | | ?????????????????????????????????????????????????? | | ?????????????????????????????????????????????????? | | ?????????????????????????????????????????????????? | | ???????????????####?#####????????????????????????? | | ??????????? # # ####????????????????????? | | ??????????? ##???????????????????? | | ?????????? #???????????????????? | | ?????????? % #???????????????????? | | ?????????? [ @ #???????????????????? | | ????????????# [ # ##???????????????????? | | ????????????# #????????????????????? | | ????????????## d #????????????????????? | | ?????????????##### #####??????????????????? | | ?????????????????# ### ###????????????????? | | ?????????????????# ##???????????????? | | ?????????????????###### #### #???????????????? | | ??????????????????????###??## ####????????????? | | ???????????????????????????# #????????????? | | ???????????????????????????## ##???????????? | | ??????????????????????????## #???????????? | | ??????????????????????????# #???????????? | | ??????????????????????????## ####### ? | | ???????????????????????????# ? | | ???????????????????????????# ? | | ?????????????????? ????#?# #### ?? | | ????????????????? ## # ###?????????? | | ????????????????? ##???????????? | | ????????????????? ##????????????? | | ?????????????????? #### #?????????????? | | ??????????????????? ?????## # ##?????????????? | | ??????????????????? ????????#### ##??????????????? | | ???????????????????????????????# #???????????????? | | ??????????????????????????????? ???????????????? | +----------------------------------------------------+ Best States ------------- Heat Dissipation 25 Energy Generation 10 Energy Capacity 250 Matter Stores 148 Matter Capacity 300 Sight Range 16 Terrain Scan Density 10 Evasion (%) 55 Targeting Accuracy 5 Item Schematics ----------------- None Robot Schematics ------------------ None Fabricated ------------ Nothing Repaired ---------- Nothing Studied --------- None Alien Tech Used ----------------- None Achievements -------------- None Challenges ------------ None Game ------ Seed SlugDirectedSpecial Manual? 0 Play Time 00:07:06 Cumulative 94.8 hours Start 2026.02.23 @ 03:54:02 End 2026.02.23 @ 04:11:25 Sessions 1 Manual Loads 0 Difficulty Rogue Special Mode None Game No. 84 Rogue 84 Adventurer 0 Explorer 0 Win Type - Total 0 Types 0/0/0/0/0/0/0/0/0/0 Lore% 39 Gallery% 39 Achievement% 28 Wizard Run 0 Options --------- Layout 1 ASCII 1 Keyboard 1 Movement Numpad Keybinds 0 Fullscreen 1 Font 24/Smallcaps Map View 50x35 Zoom Use 0% Tactical HUD 1 Map Filters NONE Filters NONE Steam 1 RUN: 05d19eec-d24e-4b9f-b461-9e36e315bad3